[Event "Titled Tuesday Blitz February 07 Late 2023"]
[White "Ortega Amarelle, Mariano"]
[Black "Gorodetzky, David"]
[WhiteFideId "3504301"]
[BlackFideId "2813416"]
[WhiteElo "2472"]
[BlackElo "2485"]
[Result "0-1"]
[Round "03"]
[TimeControl "180+2"]
[Date "2023.02.07"]
[WhiteClock "0:00:05"]
[BlackClock "0:02:07"]

1. d4 {[%clk 0:02:52]}  Nf6 {[%clk 0:02:59]} 2. Nf3 {[%clk 0:02:51]}  d5 {[%clk 0:02:56]} 3. Bf4 {[%clk 0:02:51]}  c5 {[%clk 0:02:51]} 4. e3 {[%clk 0:02:49]}  Nc6 {[%clk 0:02:52]} 5. Nbd2 {[%clk 0:02:47]}  Qb6 {[%clk 0:02:52]} 6. dxc5 {[%clk 0:02:45]}  Qxb2 {[%clk 0:02:52]} 7. Rb1 {[%clk 0:02:46]}  Qc3 {[%clk 0:02:53]} 8. Bb5 {[%clk 0:02:45]}  g6 {[%clk 0:02:52]} 9. e4 {[%clk 0:02:33]}  dxe4 {[%clk 0:02:46]} 10. Be5 {[%clk 0:02:25]}  Qa5 {[%clk 0:02:35]} 11. Nd4 {[%clk 0:02:00]}  Bd7 {[%clk 0:02:30]} 12. Bxc6 {[%clk 0:01:18]}  Bxc6 {[%clk 0:02:30]} 13. Nxc6 {[%clk 0:00:59]}  bxc6 {[%clk 0:02:30]} 14. O-O {[%clk 0:00:59]}  Rd8 {[%clk 0:02:29]} 15. Bxf6 {[%clk 0:00:27]}  exf6 {[%clk 0:02:29]} 16. Nc4 {[%clk 0:00:19]}  Qxc5 {[%clk 0:02:15]} 17. Qe2 {[%clk 0:00:19]}  f5 {[%clk 0:02:15]} 18. Rfd1 {[%clk 0:00:16]}  Be7 {[%clk 0:02:14]} 19. Rxd8+ {[%clk 0:00:14]}  Bxd8 {[%clk 0:02:15]} 20. Rb7 {[%clk 0:00:07]}  O-O {[%clk 0:02:15]} 21. h3 {[%clk 0:00:07]}  Bh4 {[%clk 0:02:07]} 22. g3 {[%clk 0:00:05]}  Bxg3 {[%clk 0:02:07]} 23. Kg2 {[%clk 0:00:05]}  Bxf2 {[%clk 0:02:07]} 0-1


[Site "https://www.chess.com"]

[Event "Titled Tuesday Blitz February 07 Late 2023"]
[White "Sanal, Vahap"]
[Black "Sztokbant, Bernardo Vainzoff"]
[WhiteFideId "6300545"]
[BlackFideId "2115956"]
[WhiteElo "2600"]
[BlackElo "2213"]
[Result "1-0"]
[Round "03"]
[TimeControl "180+2"]
[Date "2023.02.07"]
[WhiteClock "0:02:30"]
[BlackClock "0:01:22"]

1. Nf3 {[%clk 0:03:00]}  g6 {[%clk 0:02:59]} 2. e4 {[%clk 0:03:00]}  Bg7 {[%clk 0:03:00]} 3. d4 {[%clk 0:03:00]}  d6 {[%clk 0:02:59]} 4. Bd3 {[%clk 0:03:00]}  Nf6 {[%clk 0:02:59]} 5. c3 {[%clk 0:03:01]}  O-O {[%clk 0:02:59]} 6. O-O {[%clk 0:03:02]}  Nc6 {[%clk 0:02:59]} 7. Be3 {[%clk 0:03:02]}  e5 {[%clk 0:02:59]} 8. Nbd2 {[%clk 0:03:03]}  Ng4 {[%clk 0:02:57]} 9. Bg5 {[%clk 0:03:02]}  f6 {[%clk 0:02:51]} 10. Bh4 {[%clk 0:03:02]}  Qe8 {[%clk 0:02:45]} 11. h3 {[%clk 0:02:57]}  Nh6 {[%clk 0:02:45]} 12. Bg3 {[%clk 0:02:58]}  f5 {[%clk 0:02:41]} 13. dxe5 {[%clk 0:02:57]}  dxe5 {[%clk 0:02:31]} 14. Bc4+ {[%clk 0:02:54]}  Kh8 {[%clk 0:02:30]} 15. Re1 {[%clk 0:02:52]}  Qe7 {[%clk 0:02:24]} 16. exf5 {[%clk 0:02:42]}  Nxf5 {[%clk 0:02:23]} 17. Bh2 {[%clk 0:02:39]}  Nd6 {[%clk 0:02:02]} 18. Bd5 {[%clk 0:02:38]}  Bd7 {[%clk 0:01:55]} 19. Bxc6 {[%clk 0:02:35]}  Bxc6 {[%clk 0:01:56]} 20. Nxe5 {[%clk 0:02:36]}  Qf6 {[%clk 0:01:44]} 21. Ndf3 {[%clk 0:02:34]}  Be8 {[%clk 0:01:27]} 22. Ng4 {[%clk 0:02:32]}  Qf5 {[%clk 0:01:24]} 23. Be5 {[%clk 0:02:30]}  Bc6 {[%clk 0:01:21]} 24. Bxg7+ {[%clk 0:02:30]}  Kxg7 {[%clk 0:01:22]} 25. Qd4+ {[%clk 0:02:30]} 1-0


[Site "https://www.chess.com"]

[Event "Titled Tuesday Blitz February 07 Late 2023"]
[White "Sivakumar, Shaaketh"]
[Black "Chigaev, Maksim"]
[WhiteFideId "30940176"]
[BlackFideId "4108116"]
[WhiteElo "2337"]
[BlackElo "2628"]
[Result "0-1"]
[Round "03"]
[TimeControl "180+2"]
[Date "2023.02.07"]
[WhiteClock "0:01:06"]
[BlackClock "0:01:09"]

1. e4 {[%clk 0:03:00]}  c5 {[%clk 0:03:00]} 2. Nf3 {[%clk 0:02:58]}  e6 {[%clk 0:03:00]} 3. g3 {[%clk 0:02:58]}  Nc6 {[%clk 0:03:00]} 4. Bg2 {[%clk 0:02:57]}  Nf6 {[%clk 0:03:00]} 5. Qe2 {[%clk 0:02:55]}  e5 {[%clk 0:03:01]} 6. c3 {[%clk 0:02:54]}  Be7 {[%clk 0:03:00]} 7. O-O {[%clk 0:02:54]}  O-O {[%clk 0:03:00]} 8. Na3 {[%clk 0:02:55]}  Re8 {[%clk 0:03:00]} 9. Nc2 {[%clk 0:02:55]}  Bf8 {[%clk 0:03:00]} 10. d3 {[%clk 0:02:56]}  h6 {[%clk 0:02:59]} 11. Rd1 {[%clk 0:02:56]}  d5 {[%clk 0:02:59]} 12. h3 {[%clk 0:02:56]}  d4 {[%clk 0:02:58]} 13. Rb1 {[%clk 0:02:55]}  b5 {[%clk 0:02:58]} 14. a4 {[%clk 0:02:54]}  bxa4 {[%clk 0:02:57]} 15. Na3 {[%clk 0:02:53]}  Be6 {[%clk 0:02:56]} 16. Nc4 {[%clk 0:02:48]}  Nd7 {[%clk 0:02:52]} 17. Ra1 {[%clk 0:02:40]}  Bxc4 {[%clk 0:02:46]} 18. dxc4 {[%clk 0:02:40]}  Nb6 {[%clk 0:02:46]} 19. Bf1 {[%clk 0:02:36]}  Qc8 {[%clk 0:02:45]} 20. h4 {[%clk 0:02:36]}  Qe6 {[%clk 0:02:38]} 21. h5 {[%clk 0:02:35]}  Rad8 {[%clk 0:02:38]} 22. Nh4 {[%clk 0:02:31]}  Na5 {[%clk 0:02:35]} 23. Nf5 {[%clk 0:02:24]}  Nb3 {[%clk 0:02:28]} 24. Ra3 {[%clk 0:02:21]}  Nxc1 {[%clk 0:02:15]} 25. Rxc1 {[%clk 0:02:22]}  d3 {[%clk 0:02:14]} 26. Qg4 {[%clk 0:02:20]}  Nxc4 {[%clk 0:02:11]} 27. Rxa4 {[%clk 0:02:19]}  Nxb2 {[%clk 0:02:11]} 28. Rxa7 {[%clk 0:02:05]}  d2 {[%clk 0:02:11]} 29. Rd1 {[%clk 0:02:01]}  Nxd1 {[%clk 0:01:58]} 30. Qxd1 {[%clk 0:02:02]}  Kh8 {[%clk 0:01:58]} 31. Bb5 {[%clk 0:01:57]}  Qb6 {[%clk 0:01:52]} 32. Bxe8 {[%clk 0:01:40]}  Qxa7 {[%clk 0:01:52]} 33. Bc6 {[%clk 0:01:40]}  Qa3 {[%clk 0:01:40]} 34. c4 {[%clk 0:01:37]}  Qc1 {[%clk 0:01:38]} 35. Ne3 {[%clk 0:01:36]}  Rd3 {[%clk 0:01:34]} 36. Ba4 {[%clk 0:01:32]}  Be7 {[%clk 0:01:33]} 37. Kf1 {[%clk 0:01:31]}  Bg5 {[%clk 0:01:33]} 38. Ke2 {[%clk 0:01:31]}  Ra3 {[%clk 0:01:28]} 39. Bc2 {[%clk 0:01:26]}  Bxe3 {[%clk 0:01:26]} 40. fxe3 {[%clk 0:01:26]}  Rc3 {[%clk 0:01:19]} 41. Ba4 {[%clk 0:01:23]}  Qxd1+ {[%clk 0:01:17]} 42. Bxd1 {[%clk 0:01:18]}  Rxc4 {[%clk 0:01:18]} 43. Kd3 {[%clk 0:01:19]}  Rb4 {[%clk 0:01:14]} 44. Bf3 {[%clk 0:01:16]}  Rb2 {[%clk 0:01:11]} 45. Kc3 {[%clk 0:01:15]}  Ra2 {[%clk 0:01:11]} 46. Kb3 {[%clk 0:01:15]}  Ra1 {[%clk 0:01:08]} 47. Kc2 {[%clk 0:01:15]}  Rg1 {[%clk 0:01:09]} 48. g4 {[%clk 0:01:12]}  Rg3 {[%clk 0:01:10]} 49. Bh1 {[%clk 0:01:06]}  d1=Q+ {[%clk 0:01:08]} 50. Kxd1 {[%clk 0:01:06]}  Rg1+ {[%clk 0:01:09]} 0-1


[Site "https://www.chess.com"]

[Event "Titled Tuesday Blitz February 07 Late 2023"]
[White "Schekachikhin, Maksim"]
[Black "Krzyzanowski, Marcin"]
[WhiteFideId "24177830"]
[BlackFideId "1132199"]
[WhiteElo "2371"]
[BlackElo "2512"]
[Result "1-0"]
[Round "03"]
[TimeControl "180+2"]
[Date "2023.02.07"]
[WhiteClock "0:00:17"]
[BlackClock "0:00:01"]

1. b3 {[%clk 0:02:53]}  d5 {[%clk 0:02:58]} 2. Bb2 {[%clk 0:02:52]}  Bf5 {[%clk 0:02:59]} 3. d3 {[%clk 0:02:51]}  e6 {[%clk 0:02:59]} 4. Nd2 {[%clk 0:02:51]}  h6 {[%clk 0:03:00]} 5. g3 {[%clk 0:02:51]}  Bh7 {[%clk 0:03:00]} 6. Bg2 {[%clk 0:02:51]}  c6 {[%clk 0:02:58]} 7. e4 {[%clk 0:02:51]}  Nd7 {[%clk 0:02:59]} 8. Qe2 {[%clk 0:02:45]}  Ngf6 {[%clk 0:02:57]} 9. h4 {[%clk 0:02:38]}  a5 {[%clk 0:02:56]} 10. a4 {[%clk 0:02:35]}  dxe4 {[%clk 0:02:56]} 11. dxe4 {[%clk 0:02:35]}  Bb4 {[%clk 0:02:52]} 12. O-O-O {[%clk 0:02:31]}  Qe7 {[%clk 0:02:51]} 13. Nc4 {[%clk 0:02:30]}  O-O {[%clk 0:02:48]} 14. g4 {[%clk 0:02:23]}  b5 {[%clk 0:02:47]} 15. g5 {[%clk 0:02:17]}  bxc4 {[%clk 0:02:32]} 16. gxf6 {[%clk 0:02:16]}  Nxf6 {[%clk 0:02:33]} 17. Qxc4 {[%clk 0:02:14]}  Ng4 {[%clk 0:02:34]} 18. Nh3 {[%clk 0:02:07]}  e5 {[%clk 0:02:29]} 19. Bf3 {[%clk 0:01:48]}  Qxh4 {[%clk 0:02:22]} 20. Rdg1 {[%clk 0:01:43]}  Nxf2 {[%clk 0:02:18]} 21. Nxf2 {[%clk 0:01:35]}  Qxf2 {[%clk 0:01:46]} 22. Bxe5 {[%clk 0:01:32]}  g5 {[%clk 0:01:47]} 23. Rf1 {[%clk 0:01:19]}  Qe3+ {[%clk 0:01:22]} 24. Kb1 {[%clk 0:01:18]}  Rae8 {[%clk 0:01:14]} 25. Bd4 {[%clk 0:01:14]}  Qd2 {[%clk 0:00:56]} 26. Rxh6 {[%clk 0:01:00]}  g4 {[%clk 0:00:45]} 27. Rfh1 {[%clk 0:00:48]}  Qxh6 {[%clk 0:00:30]} 28. Rxh6 {[%clk 0:00:46]}  gxf3 {[%clk 0:00:31]} 29. Qf1 {[%clk 0:00:35]}  Re6 {[%clk 0:00:28]} 30. Rh3 {[%clk 0:00:20]}  Rd8 {[%clk 0:00:22]} 31. Rxf3 {[%clk 0:00:20]}  Rxd4 {[%clk 0:00:21]} 32. Qg1+ {[%clk 0:00:20]}  Bg6 {[%clk 0:00:14]} 33. Qxd4 {[%clk 0:00:20]}  Rxe4 {[%clk 0:00:15]} 34. Qd8+ {[%clk 0:00:20]}  Kg7 {[%clk 0:00:16]} 35. Qf6+ {[%clk 0:00:20]}  Kg8 {[%clk 0:00:16]} 36. Rh3 {[%clk 0:00:19]}  Re1+ {[%clk 0:00:06]} 37. Kb2 {[%clk 0:00:19]}  Ba3+ {[%clk 0:00:01]} 38. Kxa3 {[%clk 0:00:17]} 1-0


[Site "https://www.chess.com"]

[Event "Titled Tuesday Blitz February 07 Late 2023"]
[White "Seletsky, Grigory"]
[Black "Avila Pavas, Santiago"]
[WhiteFideId "14112191"]
[BlackFideId "4437128"]
[WhiteElo "2259"]
[BlackElo "2522"]
[Result "1-0"]
[Round "03"]
[TimeControl "180+2"]
[Date "2023.02.07"]
[WhiteClock "0:00:14"]
[BlackClock "0:00:19"]

1. e4 {[%clk 0:02:52]}  Nf6 {[%clk 0:03:00]} 2. d3 {[%clk 0:02:50]}  e6 {[%clk 0:03:01]} 3. Nd2 {[%clk 0:02:50]}  Nc6 {[%clk 0:03:00]} 4. Ngf3 {[%clk 0:02:49]}  d5 {[%clk 0:03:00]} 5. g3 {[%clk 0:02:49]}  dxe4 {[%clk 0:03:00]} 6. dxe4 {[%clk 0:02:47]}  e5 {[%clk 0:03:01]} 7. Bg2 {[%clk 0:02:46]}  Bc5 {[%clk 0:03:01]} 8. O-O {[%clk 0:02:46]}  O-O {[%clk 0:03:02]} 9. h3 {[%clk 0:02:46]}  Be6 {[%clk 0:03:01]} 10. Re1 {[%clk 0:02:44]}  h6 {[%clk 0:03:01]} 11. c3 {[%clk 0:02:44]}  a5 {[%clk 0:02:59]} 12. a4 {[%clk 0:02:42]}  Qd6 {[%clk 0:02:57]} 13. Qc2 {[%clk 0:02:41]}  Rfd8 {[%clk 0:02:56]} 14. Bf1 {[%clk 0:02:39]}  Ne7 {[%clk 0:02:49]} 15. Nc4 {[%clk 0:02:38]}  Qc6 {[%clk 0:02:39]} 16. Nfxe5 {[%clk 0:02:27]}  Qe8 {[%clk 0:02:39]} 17. Be3 {[%clk 0:02:22]}  Bxe3 {[%clk 0:02:37]} 18. Rxe3 {[%clk 0:02:22]}  b6 {[%clk 0:02:10]} 19. Rd1 {[%clk 0:02:17]}  Rxd1 {[%clk 0:02:10]} 20. Qxd1 {[%clk 0:02:17]}  Rd8 {[%clk 0:02:10]} 21. Qc2 {[%clk 0:02:17]}  Rb8 {[%clk 0:01:52]} 22. Na3 {[%clk 0:01:58]}  Nc8 {[%clk 0:01:46]} 23. Nec4 {[%clk 0:01:50]}  c6 {[%clk 0:01:37]} 24. f4 {[%clk 0:01:46]}  Nd7 {[%clk 0:01:33]} 25. e5 {[%clk 0:01:34]}  Qd8 {[%clk 0:01:22]} 26. Qd1 {[%clk 0:01:24]}  Bd5 {[%clk 0:01:18]} 27. Bg2 {[%clk 0:01:21]}  Ne7 {[%clk 0:01:05]} 28. Nd6 {[%clk 0:01:15]}  Nc5 {[%clk 0:01:03]} 29. b4 {[%clk 0:01:13]}  Bb3 {[%clk 0:01:00]} 30. Qb1 {[%clk 0:01:10]}  Bxa4 {[%clk 0:00:57]} 31. bxc5 {[%clk 0:01:09]}  bxc5 {[%clk 0:00:58]} 32. Qe4 {[%clk 0:01:01]}  Nd5 {[%clk 0:00:58]} 33. Rf3 {[%clk 0:00:53]}  Bd1 {[%clk 0:00:52]} 34. Rf2 {[%clk 0:00:44]}  Rb3 {[%clk 0:00:46]} 35. Rd2 {[%clk 0:00:33]}  Rxa3 {[%clk 0:00:44]} 36. Qf5 {[%clk 0:00:30]}  Qf8 {[%clk 0:00:34]} 37. Bxd5 {[%clk 0:00:26]}  Ra1 {[%clk 0:00:32]} 38. Bxf7+ {[%clk 0:00:23]}  Kh8 {[%clk 0:00:33]} 39. Kf2 {[%clk 0:00:21]}  a4 {[%clk 0:00:32]} 40. Bg6 {[%clk 0:00:15]}  Qxf5 {[%clk 0:00:17]} 41. Nxf5 {[%clk 0:00:15]}  Bb3 {[%clk 0:00:18]} 42. Rd8+ {[%clk 0:00:14]}  Bg8 {[%clk 0:00:19]} 43. Ne7 {[%clk 0:00:14]} 1-0


[Site "https://www.chess.com"]

[Event "Titled Tuesday Blitz February 07 Late 2023"]
[White "Timmermans, Mark"]
[Black "Vovk, Orest"]
[WhiteFideId "1026399"]
[BlackFideId "14113490"]
[WhiteElo "2392"]
[BlackElo "2315"]
[Result "1-0"]
[Round "03"]
[TimeControl "180+2"]
[Date "2023.02.07"]
[WhiteClock "0:00:23"]
[BlackClock "0:00:02"]

1. e4 {[%clk 0:03:00]}  g5 {[%clk 0:02:55]} 2. d4 {[%clk 0:02:58]}  g4 {[%clk 0:02:50]} 3. Qxg4 {[%clk 0:02:57]}  d5 {[%clk 0:02:46]} 4. Qh4 {[%clk 0:02:36]}  dxe4 {[%clk 0:02:44]} 5. Qxe4 {[%clk 0:02:36]}  Nf6 {[%clk 0:02:44]} 6. Qd3 {[%clk 0:02:35]}  Nc6 {[%clk 0:02:43]} 7. Nf3 {[%clk 0:02:35]}  Bg4 {[%clk 0:02:42]} 8. c3 {[%clk 0:02:34]}  Qd5 {[%clk 0:02:42]} 9. Nbd2 {[%clk 0:02:30]}  O-O-O {[%clk 0:02:41]} 10. Qc4 {[%clk 0:02:30]}  Qh5 {[%clk 0:02:38]} 11. Be2 {[%clk 0:02:25]}  e5 {[%clk 0:02:33]} 12. dxe5 {[%clk 0:02:15]}  Nxe5 {[%clk 0:02:31]} 13. Qb5 {[%clk 0:01:48]}  Bc5 {[%clk 0:01:43]} 14. Kf1 {[%clk 0:01:16]}  Nxf3 {[%clk 0:01:15]} 15. Nxf3 {[%clk 0:01:15]}  Ne4 {[%clk 0:01:04]} 16. Nd4 {[%clk 0:01:12]}  Bxd4 {[%clk 0:00:46]} 17. Qxh5 {[%clk 0:01:12]}  Bxh5 {[%clk 0:00:45]} 18. Bxh5 {[%clk 0:01:13]}  Bxf2 {[%clk 0:00:37]} 19. g3 {[%clk 0:00:54]}  Bb6 {[%clk 0:00:20]} 20. Kg2 {[%clk 0:00:50]}  f5 {[%clk 0:00:18]} 21. Bf4 {[%clk 0:00:50]}  Nf6 {[%clk 0:00:14]} 22. Bf3 {[%clk 0:00:50]}  Nd5 {[%clk 0:00:13]} 23. Bg5 {[%clk 0:00:45]}  Ne3+ {[%clk 0:00:12]} 24. Kh3 {[%clk 0:00:44]}  Rd3 {[%clk 0:00:09]} 25. Rhe1 {[%clk 0:00:40]}  Rg8 {[%clk 0:00:09]} 26. Bf4 {[%clk 0:00:38]}  Ng4 {[%clk 0:00:05]} 27. Be2 {[%clk 0:00:38]}  Rd7 {[%clk 0:00:04]} 28. Bc4 {[%clk 0:00:37]}  Rgd8 {[%clk 0:00:03]} 29. Be6 {[%clk 0:00:37]}  Nf2+ {[%clk 0:00:02]} 30. Kg2 {[%clk 0:00:38]}  Nd3 {[%clk 0:00:02]} 31. Red1 {[%clk 0:00:36]}  Kb8 {[%clk 0:00:01]} 32. Bxd7 {[%clk 0:00:36]}  Rxd7 {[%clk 0:00:02]} 33. Kf1 {[%clk 0:00:30]}  Kc8 {[%clk 0:00:01]} 34. Rd2 {[%clk 0:00:28]}  Nxf4 {[%clk 0:00:02]} 35. Rxd7 {[%clk 0:00:28]}  Kxd7 {[%clk 0:00:02]} 36. gxf4 {[%clk 0:00:28]}  Be3 {[%clk 0:00:03]} 37. Ke2 {[%clk 0:00:28]}  Bxf4 {[%clk 0:00:03]} 38. Rf1 {[%clk 0:00:29]}  Bxh2 {[%clk 0:00:03]} 39. Rh1 {[%clk 0:00:30]}  Be5 {[%clk 0:00:03]} 40. Rxh7+ {[%clk 0:00:31]}  Ke6 {[%clk 0:00:03]} 41. Kf3 {[%clk 0:00:30]}  a5 {[%clk 0:00:03]} 42. Rh6+ {[%clk 0:00:29]}  Kd5 {[%clk 0:00:03]} 43. Ke3 {[%clk 0:00:26]}  a4 {[%clk 0:00:03]} 44. Kd3 {[%clk 0:00:26]}  b6 {[%clk 0:00:03]} 45. b3 {[%clk 0:00:25]}  axb3 {[%clk 0:00:02]} 46. axb3 {[%clk 0:00:26]}  f4 {[%clk 0:00:03]} 47. c4+ {[%clk 0:00:24]}  Kc5 {[%clk 0:00:03]} 48. Rh5 {[%clk 0:00:24]}  Kd6 {[%clk 0:00:04]} 49. Ke4 {[%clk 0:00:25]}  Bc3 {[%clk 0:00:03]} 50. Rd5+ {[%clk 0:00:25]}  Kc6 {[%clk 0:00:03]} 51. Kxf4 {[%clk 0:00:26]}  Bb4 {[%clk 0:00:03]} 52. Ke4 {[%clk 0:00:26]}  Bc5 {[%clk 0:00:04]} 53. Rh5 {[%clk 0:00:26]}  Bd6 {[%clk 0:00:03]} 54. Kd3 {[%clk 0:00:25]}  Bc5 {[%clk 0:00:03]} 55. Kc3 {[%clk 0:00:25]}  Bd6 {[%clk 0:00:04]} 56. b4 {[%clk 0:00:25]}  Be7 {[%clk 0:00:03]} 57. Rh6+ {[%clk 0:00:25]}  Kb7 {[%clk 0:00:03]} 58. Kb3 {[%clk 0:00:25]}  Bf8 {[%clk 0:00:03]} 59. Rg6 {[%clk 0:00:25]}  Be7 {[%clk 0:00:04]} 60. Ka4 {[%clk 0:00:25]}  Bd6 {[%clk 0:00:04]} 61. Kb5 {[%clk 0:00:22]}  Bf4 {[%clk 0:00:04]} 62. c5 {[%clk 0:00:22]}  bxc5 {[%clk 0:00:03]} 63. bxc5 {[%clk 0:00:23]}  Bh2 {[%clk 0:00:04]} 64. c6+ {[%clk 0:00:23]}  Ka7 {[%clk 0:00:04]} 65. Rg2 {[%clk 0:00:22]}  Bd6 {[%clk 0:00:03]} 66. Ra2+ {[%clk 0:00:22]}  Kb8 {[%clk 0:00:04]} 67. Kc4 {[%clk 0:00:23]}  Bf4 {[%clk 0:00:01]} 68. Kd5 {[%clk 0:00:23]}  Bg3 {[%clk 0:00:02]} 69. Ke6 {[%clk 0:00:24]}  Bf4 {[%clk 0:00:03]} 70. Kd7 {[%clk 0:00:24]}  Be3 {[%clk 0:00:03]} 71. Rb2+ {[%clk 0:00:24]}  Ka7 {[%clk 0:00:02]} 72. Rb7+ {[%clk 0:00:23]}  Ka6 {[%clk 0:00:02]} 73. Rxc7 {[%clk 0:00:23]}  Bf4 {[%clk 0:00:03]} 74. Rb7 {[%clk 0:00:23]}  Bg3 {[%clk 0:00:02]} 75. Rb1 {[%clk 0:00:23]} 1-0


[Site "https://www.chess.com"]

[Event "Titled Tuesday Blitz February 07 Late 2023"]
[White "Dragomirescu, Angela"]
[Black "Tanenbaum, Zachary"]
[WhiteFideId "1209914"]
[BlackFideId "2060850"]
[WhiteElo "2130"]
[BlackElo "2261"]
[Result "1-0"]
[Round "03"]
[TimeControl "180+2"]
[Date "2023.02.07"]
[WhiteClock "0:00:59"]
[BlackClock "0:00:26"]

1. e4 {[%clk 0:02:57]}  e5 {[%clk 0:03:00]} 2. Nf3 {[%clk 0:02:57]}  Nc6 {[%clk 0:03:01]} 3. Bb5 {[%clk 0:02:58]}  a6 {[%clk 0:03:01]} 4. Ba4 {[%clk 0:02:58]}  d6 {[%clk 0:03:02]} 5. O-O {[%clk 0:02:58]}  Nf6 {[%clk 0:03:03]} 6. Re1 {[%clk 0:02:58]}  Be7 {[%clk 0:03:04]} 7. c3 {[%clk 0:02:59]}  O-O {[%clk 0:03:04]} 8. h3 {[%clk 0:02:59]}  b5 {[%clk 0:03:04]} 9. Bb3 {[%clk 0:02:59]}  Nb8 {[%clk 0:02:59]} 10. d4 {[%clk 0:02:59]}  Nbd7 {[%clk 0:02:59]} 11. a4 {[%clk 0:03:00]}  Bb7 {[%clk 0:02:59]} 12. Nbd2 {[%clk 0:02:59]}  h6 {[%clk 0:02:46]} 13. Bc2 {[%clk 0:02:58]}  Re8 {[%clk 0:02:46]} 14. b3 {[%clk 0:02:52]}  Bf8 {[%clk 0:02:46]} 15. Bb2 {[%clk 0:02:52]}  g6 {[%clk 0:02:42]} 16. dxe5 {[%clk 0:02:52]}  dxe5 {[%clk 0:02:34]} 17. Qe2 {[%clk 0:02:52]}  c6 {[%clk 0:02:19]} 18. b4 {[%clk 0:02:52]}  Nh5 {[%clk 0:02:13]} 19. g3 {[%clk 0:02:51]}  Nb6 {[%clk 0:02:10]} 20. axb5 {[%clk 0:02:44]}  cxb5 {[%clk 0:02:10]} 21. Bb3 {[%clk 0:02:45]}  Qd7 {[%clk 0:02:00]} 22. Kg2 {[%clk 0:02:38]}  Rad8 {[%clk 0:01:55]} 23. Red1 {[%clk 0:02:27]}  Qc6 {[%clk 0:01:55]} 24. c4 {[%clk 0:02:24]}  Bxb4 {[%clk 0:01:33]} 25. cxb5 {[%clk 0:02:24]}  axb5 {[%clk 0:01:19]} 26. Rac1 {[%clk 0:01:50]}  Qf6 {[%clk 0:01:18]} 27. Qxb5 {[%clk 0:01:29]}  Bxd2 {[%clk 0:01:17]} 28. Nxd2 {[%clk 0:01:30]}  Rxd2 {[%clk 0:01:09]} 29. Rxd2 {[%clk 0:01:23]}  Bxe4+ {[%clk 0:01:09]} 30. Kh2 {[%clk 0:01:23]}  Rb8 {[%clk 0:00:51]} 31. Qxe5 {[%clk 0:01:21]}  Qxe5 {[%clk 0:00:49]} 32. Bxe5 {[%clk 0:01:22]}  Re8 {[%clk 0:00:48]} 33. Bd4 {[%clk 0:01:21]}  Nd7 {[%clk 0:00:46]} 34. Rc7 {[%clk 0:01:19]}  Bf5 {[%clk 0:00:42]} 35. Bb2 {[%clk 0:01:14]}  Ne5 {[%clk 0:00:34]} 36. Bxe5 {[%clk 0:01:03]}  Rxe5 {[%clk 0:00:35]} 37. g4 {[%clk 0:01:04]}  Nf4 {[%clk 0:00:31]} 38. Bxf7+ {[%clk 0:01:00]}  Kf8 {[%clk 0:00:27]} 39. gxf5 {[%clk 0:01:01]}  Rxf5 {[%clk 0:00:27]} 40. Rd8+ {[%clk 0:00:57]}  Kg7 {[%clk 0:00:27]} 41. Be6+ {[%clk 0:00:58]}  Kf6 {[%clk 0:00:28]} 42. Bxf5 {[%clk 0:00:58]}  Kxf5 {[%clk 0:00:27]} 43. Rf8+ {[%clk 0:00:59]}  Kg5 {[%clk 0:00:26]} 44. Rxf4 {[%clk 0:00:59]} 1-0


[Site "https://www.chess.com"]

[Event "Titled Tuesday Blitz February 07 Late 2023"]
[White "Danielyan, Vahe"]
[Black "Salimova, Nurgyul"]
[WhiteFideId "13304828"]
[BlackFideId "2915138"]
[WhiteElo "2346"]
[BlackElo "2391"]
[Result "0-1"]
[Round "03"]
[TimeControl "180+2"]
[Date "2023.02.07"]
[WhiteClock "0:00:02"]
[BlackClock "0:00:05"]

1. e4 {[%clk 0:03:00]}  c6 {[%clk 0:02:59]} 2. d4 {[%clk 0:03:00]}  d5 {[%clk 0:03:00]} 3. exd5 {[%clk 0:03:00]}  cxd5 {[%clk 0:03:01]} 4. Bd3 {[%clk 0:03:01]}  Nf6 {[%clk 0:03:01]} 5. h3 {[%clk 0:02:59]}  Nc6 {[%clk 0:02:57]} 6. c3 {[%clk 0:02:54]}  Qc7 {[%clk 0:02:57]} 7. Nf3 {[%clk 0:02:53]}  g6 {[%clk 0:02:43]} 8. O-O {[%clk 0:02:53]}  Bf5 {[%clk 0:02:41]} 9. Be2 {[%clk 0:02:52]}  Bg7 {[%clk 0:02:39]} 10. Be3 {[%clk 0:02:51]}  O-O {[%clk 0:02:39]} 11. Nbd2 {[%clk 0:02:51]}  Rfe8 {[%clk 0:02:22]} 12. Re1 {[%clk 0:02:49]}  Rad8 {[%clk 0:02:19]} 13. Nf1 {[%clk 0:02:33]}  Ne4 {[%clk 0:02:16]} 14. Qa4 {[%clk 0:02:15]}  a6 {[%clk 0:02:11]} 15. Rad1 {[%clk 0:02:07]}  b5 {[%clk 0:01:48]} 16. Qxa6 {[%clk 0:02:06]}  Ra8 {[%clk 0:01:47]} 17. Qxb5 {[%clk 0:02:06]}  Reb8 {[%clk 0:01:47]} 18. Qxd5 {[%clk 0:02:06]}  Rxb2 {[%clk 0:01:37]} 19. Bf4 {[%clk 0:00:53]}  Nxc3 {[%clk 0:01:18]} 20. Qxf5 {[%clk 0:00:52]}  gxf5 {[%clk 0:01:14]} 21. Bxc7 {[%clk 0:00:52]}  Nxe2+ {[%clk 0:01:14]} 22. Kh1 {[%clk 0:00:42]}  Nexd4 {[%clk 0:01:09]} 23. Ne5 {[%clk 0:00:19]}  Raxa2 {[%clk 0:00:50]} 24. Nxc6 {[%clk 0:00:15]}  Nxc6 {[%clk 0:00:51]} 25. Bg3 {[%clk 0:00:14]}  f4 {[%clk 0:00:47]} 26. Bh4 {[%clk 0:00:13]}  Bf6 {[%clk 0:00:40]} 27. Bxf6 {[%clk 0:00:11]}  exf6 {[%clk 0:00:41]} 28. Rd6 {[%clk 0:00:09]}  Ne5 {[%clk 0:00:37]} 29. Rxf6 {[%clk 0:00:08]}  Ng6 {[%clk 0:00:32]} 30. Rf5 {[%clk 0:00:04]}  Rxf2 {[%clk 0:00:32]} 31. Rg5 {[%clk 0:00:04]}  Kg7 {[%clk 0:00:25]} 32. Nh2 {[%clk 0:00:02]}  h6 {[%clk 0:00:22]} 33. Rg4 {[%clk 0:00:01]}  h5 {[%clk 0:00:22]} 34. Rg5 {[%clk 0:00:02]}  Kh6 {[%clk 0:00:22]} 35. Nf3 {[%clk 0:00:01]}  f6 {[%clk 0:00:19]} 36. Rxg6+ {[%clk 0:00:01]}  Kxg6 {[%clk 0:00:19]} 37. Rg1 {[%clk 0:00:02]}  Kf5 {[%clk 0:00:16]} 38. Nh4+ {[%clk 0:00:02]}  Ke4 {[%clk 0:00:15]} 39. Re1+ {[%clk 0:00:02]}  Rae2 {[%clk 0:00:14]} 40. Rb1 {[%clk 0:00:02]}  Rb2 {[%clk 0:00:12]} 41. Rc1 {[%clk 0:00:02]}  Rfc2 {[%clk 0:00:12]} 42. Re1+ {[%clk 0:00:03]}  Re2 {[%clk 0:00:12]} 43. Ra1 {[%clk 0:00:04]}  f3 {[%clk 0:00:11]} 44. Ra4+ {[%clk 0:00:03]}  Kd5 {[%clk 0:00:09]} 45. Ra5+ {[%clk 0:00:02]}  Kc6 {[%clk 0:00:06]} 46. Nxf3 {[%clk 0:00:01]}  Rxg2 {[%clk 0:00:07]} 47. Rxh5 {[%clk 0:00:02]}  Rgf2 {[%clk 0:00:07]} 48. Rf5 {[%clk 0:00:02]}  Rf1+ {[%clk 0:00:04]} 49. Ng1 {[%clk 0:00:02]}  Rxf5 {[%clk 0:00:05]} 0-1


[Site "https://www.chess.com"]